Cogmind - Beta 11.1 @@@ ROGUE MODE // 2022.12.17 @ 17:14:18 Player: Milkduds Result: Destroyed by S-10 Pest with Light Assault Rifle Performance ------------- Evolutions (0) 0 Regions Visited (1) 200 Robots Destroyed (8) 40 Value Destroyed (137) 137 Prototype IDs (0) 0 Alien Tech Used (0) 0 Bonus (0) 0 TOTAL SCORE: 377 Bonus ------- None Cogmind --------- Core Integrity 0/250 Matter 287/300 Energy 100/100 System Corruption 1% Temperature Cool (0) Movement Core (50) Location -10/Materials Parts ------- > --- POWER (1) -------- (None) > --- PROPULSION (2) --- (None) > --- UTILITY (2) ------ (None) > --- WEAPON (2) ------- (None) > --- INVENTORY (5) ---- Light Treads Light Treads Light Assault Rifle Peak State ------------ > --- POWER ------------ Light Ion Engine > --- PROPULSION ------- Wheel Wheel > --- UTILITY ---------- (None) > --- WEAPON ----------- EM Pulse Gun Medium Laser > --- INVENTORY -------- Light Assault Rifle [Rating: 5] Favorites ----------- Power Light Ion Engine Engine Light Ion Engine Propulsion Light Treads Treads Light Treads Wheel Wheel Utility None Weapon Medium Laser Energy Gun Medium Laser Ballistic Gun Light Assault Rifle Build | -11 -10 ------- Run | Scr Mat Slots Evolved . | . . Power . | . . Propulsion . | . . Utility . | . . Weapon . | . . Parts Attached 12 | 6 6 Power 4 | 2 2 Engine 4 | 2 2 Core . | . . Reactor . | . . Propulsion 4 | 2 2 Treads 2 | . 2 Leg . | . . Wheel 2 | 2 . Hover . | . . Flight . | . . Utility . | . . Device . | . . Storage . | . . Processor . | . . Hackware . | . . Protection . | . . Artifact . | . . Weapon 4 | 2 2 Energy Gun 2 | 2 . Energy Cannon . | . . Ballistic Gun 2 | . 2 Ballistic Cannon . | . . Launcher . | . . Special Weapon . | . . Impact Weapon . | . . Slashing Weapon . | . . Piercing Weapon . | . . Special Melee Weapon . | . . Unidentified Prototypes . | . . Corrupted Parts 1 | 1 . System Corruption 1 | 1 . Parts Lost 9 | . 9 Power 3 | . 3 Propulsion 2 | . 2 Utility . | . . Weapon 4 | . 4 Highest Loss Streak 9 | . 9 To Critical Strikes . | . . Average Slot Usage (%) 63 | . 63 Engine 12 | . 12 Treads 24 | . 24 Wheel 1 | . 1 Energy Gun 22 | . 22 Ballistic Gun 1 | . 1 Naked Turns 2 | . 2 Heaviest Build 7 | 7 7 Greatest Support 40 | 20 40 Greatest Overweight (x) 1 | . 1 Average Overweight (x) . | . . Largest Inventory Capacity 5 | 5 5 Average Capacity 5 | 5 5 Most Carried 5 | 3 5 Average Carried 2 | 1 3 Final Capacity 5 | 5 5 Final Carried 3 | 3 3 Class Distribution -------------------- 100% | Mutant Dominant Class ---------------- Mutant | -10/Materials Resources | -11 -10 ----------- Run | Scr Mat Matter Collected 298 | 260 38 Remotely . | . . Salvage Created 222 | 122 100 Parts 14 | 8 6 Haulers Intercepted . | . . Recyclers Shooed . | . . Parts Field Recycled . | . . Retrieved Matter . | . . Parts Self-Destructed . | . . Prevented . | . . Kills | -11 -10 ------- Run | Scr Mat Combat Hostiles Destroyed 5 | 1 4 Guns 5 | 1 4 Classes Destroyed 4 | 3 1 Worker 1 | 1 . Tunneler 2 | 2 . Swarmer 2 | . 2 Grunt 3 | 1 2 Best Kill Streak 3 | 3 3 Combat Bots Only 3 | 1 3 Max Kills in Single Turn 1 | 1 1 Gunslinging . | . . Exploded . | . . Melee . | . . Uniques/NPCs Destroyed . | . . Combat | -11 -10 -------- Run | Scr Mat Damage Taken 984 | 66 918 Core 253 | 11 242 Absorbed by Shields . | . . Regen/Repaired (Parts) 21 | . 21 Core Remaining (%) 95 | 95 . Volleys Fired 31 | 8 23 Largest 2 | 2 2 Hottest 90 | 90 90 Shots Fired 43 | 16 27 Gun 43 | 16 27 Cannon . | . . Launcher . | . . Special . | . . Kinetic 12 | . 12 Thermal 18 | 8 10 Explosive . | . . Electromagnetic 13 | 8 5 Robot Hit Streak 6 | 2 6 Robot Miss Streak 8 | 3 8 Penetration Max . | . . Secondary Targets . | . . Shots Hit Robots 20 | 6 14 Core Hits 11 | 5 6 Critical Kills . | . . Critical Parts Destroyed . | . . Critical Strikes . | . . Melee Attacks . | . . Impact . | . . Slashing . | . . Piercing . | . . Sneak Attacks . | . . Combat Hostiles . | . . Follow-up Attacks . | . . Damage Inflicted 317 | 157 160 Guns 277 | 117 160 Cannons . | . . Explosions 40 | 40 . Melee . | . . Ramming . | . . Kinetic 79 | . 79 Thermal 116 | 91 25 Explosive . | . . Electromagnetic 122 | 66 56 Impact . | . . Slashing . | . . Piercing . | . . Highest Corruption 1 | 1 1 Average Corruption 1 | 1 1 Corruption Purged . | . . Corruption Blocked . | . . Effects 1 | . 1 Weapon Failures 1 | . 1 Overload Shots . | . . Overflow Damage . | . . Projectiles . | . . Explosions . | . . Melee . | . . Knockbacks . | . . Impact . | . . Kinetic . | . . Secondary . | . . Self-Inflicted Damage 20 | 20 . Shots 1 | 1 . Rammed . | . . Targets Rammed . | . . Kicked . | . . Crushed . | . . Highest Temperature 234 | 234 102 Average Temperature 71 | 108 31 Received Heat Transfer 258 | 24 234 Siege Activations . | . . Robots Corrupted . | . . Combat Hostiles . | . . Parts Fried . | . . Impact Corruptions . | . . Robots Melted . | . . Combat Hostiles . | . . Parts Melted 1 | . 1 Heat Transferred 272 | 198 74 Parts Sabotaged . | . . Parts Stolen . | . . Parts Stripped . | . . Power Chain Reactions 1 | 1 . Missiles Intercepted . | . . Alert | -11 -10 ------- Run | Scr Mat Peak Influence 58 | 35 58 Initial 22 | . 22 Average 28 | 9 37 Maximum Alert Level . | . . Low Security (%) 100 | 100 100 Level 1 . | . . Level 2 . | . . Level 3 . | . . Level 4 . | . . Level 5 . | . . High Security . | . . Max Security . | . . Squads Dispatched 2 | . 2 Investigation 1 | . 1 Extermination . | . . Reinforcement 1 | . 1 Assault . | . . Garrison . | . . Intercept . | . . Searches Triggered . | . . Construction Impeded . | . . Haulers Reinforced . | . . Active Scanning Responses . | . . Cargo Convoy Interrupts . | . . Stealth | -11 -10 --------- Run | Scr Mat Distress Signals . | . . Communications Jammed . | . . Distress Signals . | . . Times Spotted 9 | 1 8 Peak Tracking Total 6 | 1 6 Tactical Retreats . | . . Traps | -11 -10 ------- Run | Scr Mat Traps Triggered 1 | . 1 Indirectly . | . . Trap Hack Attempts . | . . Triggered . | . . Disarmed . | . . Reprogrammed . | . . Reused . | . . Traps Extracted . | . . Installed . | . . Triggered . | . . Machines | -11 -10 ---------- Run | Scr Mat Machines Disabled . | . . Max in Single Turn . | . . Machines Sabotaged . | . . Garrisons Compromised . | . . Overloaded Fab Kills . | . . Hacking | -11 -10 --------- Run | Scr Mat Machines Accessed 1 | . 1 Terminals . | . . Fabricators . | . . Repair Stations 1 | . 1 Recycling Units . | . . Scanalyzers . | . . Garrison Access . | . . Total Hacks 2 | . 2 Successful 2 | . 2 Failed . | . . Catastrophic . | . . Database Lockouts . | . . Manual . | . . Terminals . | . . Fabricators . | . . Repair Stations 2 | . 2 Recycling Units . | . . Scanalyzers . | . . Garrison Access . | . . Terminal Hacks . | . . Fabricator Hacks . | . . Repair Station Hacks 2 | . 2 Scan Component 1 | . 1 Repair 1 | . 1 Recycling Unit Hacks . | . . Scanalyzer . | . . Garrison Access Hacks . | . . Unauthorized Hacks . | . . Terminals . | . . Fabricators . | . . Repair Stations . | . . Recycling Units . | . . Scanalyzers . | . . Garrison Access . | . . Data Cores Recovered . | . . Used . | . . Hacking Detections 1 | . 1 Full Trace Events . | . . Feedback Events . | . . Feedback Blocked . | . . Robot Schematics Acquired . | . . Robots Built . | . . Authchips . | . . Time . | . . Total Robot Build Rating . | . . Part Schematics Acquired . | . . Parts Built . | . . Authchips . | . . Time . | . . Total Part Build Rating . | . . Parts Repaired 1 | . 1 Time 26 | . 26 Parts Recycled . | . . Recycled Matter . | . . Retrieved Matter . | . . Retrieved Components . | . . Parts Scanalyzed . | . . Part Schematics Acquired . | . . Parts Damaged . | . . Bothacking | -11 -10 ------------ Run | Scr Mat Used RIF Installer . | . . Robots Hacked . | . . Non-combat . | . . Combat . | . . Robot Hacks Applied . | . . Relay Couplers Released . | . . Fabnet Peak Effective % . | . . Robots Rewired . | . . Allies Hacked . | . . Hacks Repelled . | . . Allies | -11 -10 -------- Run | Scr Mat Total Allies . | . . Largest Group . | . . Highest-Rated Group . | . . Highest-Rated Ally . | . . Total Orders . | . . Ally Attacks . | . . Total Damage . | . . Kills . | . . Allies Corrupted . | . . Allies Melted . | . . Intel | -11 -10 ------- Run | Scr Mat Robot Analysis Total . | . . Derelict Logs Recovered . | . . Drone Launches . | . . Drone Recoveries . | . . Exploration | -11 -10 ------------- Run | Scr Mat Turns Passed 338 | 110 228 Spaces Moved 197 | 98 99 Core 33 | 23 10 Treads 74 | . 74 Legs . | . . Wheels 90 | 75 15 Hover . | . . Flight . | . . Fastest Speed 50 | 50 50 Average Speed 105 | 72 138 Slowest Speed 160 | 80 160 Overloaded Moves . | . . Propulsion Burnouts . | . . Robots Hopped . | . . Cave-ins Triggered . | . . Exploration Rate (%) 12 | 9 15 Regions Visited 1 Branch Regions . Pre-discovered Areas . | . . Known Exits Taken . | . . Unknown Exits Taken 1 | 1 . Scrap Searched . | . . Spaces Dug . | . . Terrain Destroyed . | . . Melee . | . . Projectile . | . . AOE . | . . Terrain Rammed . | . . Walls Destroyed . | . . Machines Disabled . | . . Actions | -11 -10 --------- Run | Scr Mat Total 285 | 119 166 Wait 27 | . 27 Move 196 | 97 99 Hop . | . . Pick Up 16 | 8 8 Fast Attach . | . . Attach 11 | 5 6 Detach . | . . Swap 1 | 1 . Drop 3 | . 3 Fire 31 | 8 23 Melee . | . . Ram . | . . Kick . | . . Crush . | . . Escape Stasis . | . . Rewire . | . . Trap . | . . Miscellaneous . | . . Route ------- -11/Scrapyard -10/Materials History --------- Turn | Location | Event 2 | -11/Scrapyard | Met Revision 17 68 | -11/Scrapyard | Discovered new exit (range 8) 111 | -11/Scrapyard | Entered Materials 202 | -10/Materials | Repaired Lgt. Ion Engine 302 | -10/Materials | Build established: Mutant 324 | -10/Materials | Core integrity fell below 50% 335 | -10/Materials | Core integrity fell below 20% 339 | -10/Materials | Destroyed by S-10 Pest with Light Assault Rifle Last Messages --------------- Acquired Lgt. Treads. Dropped Wheel. EM Pulse Gun destroyed. U-05 Engineer lays Concrete. Lgt. Ion Engine destroyed. Med. Laser destroyed. S-10 Pest destroyed. U-05 Engineer builds a Door. Acquired Lgt. Assault Rifle. Lgt. Treads destroyed. G-34 Mercenary destroyed. Acquired 18 matter. Lgt. Ion Engine destroyed. Lgt. Assault Rifle destroyed. U-05 Engineer destroyed. Acquired Lgt. Ion Engine. Lgt. Ion Engine destroyed. S-10 Pest destroyed. Lgt. Assault Rifle destroyed. Acquired Lgt. Assault Rifle. Map ----- +----------------------------------------------------+ | ???????????????????????????????????? | | ???????????????????????????????????? | | ???????????????????????????????????? | | ???????????????????????????????????? | | ???????????????????????????????????? | | ???????????????????????????????????? | | ???????????????????????????????????? | | ???????????????????????????????????? | | ???????????????????????????????????? | | ???????????????????????????????????? | | ???????????????????????????????????? | | ???????????????????????????????????? | | ???????????????????????????????????? | | ???????????????????????????????????? | | ???????????????????????????#???????? | | ?????????####????###??????? ???????? | | ?????????? ??? #??????" "??????? | | ??????????? ??? #??????" "??????? | | ???????????? ?? #?????? ??????? | | ???????????###+###+#?????? ??????? | | ???????????# #?????? ??????? | | ???????????# =####??? ??????? | | ???????????# # +??? ??????? | | ???????????# """"" # #####+###????? | | ???????????# """"" # s #????? | | ???????????# """"" # ! @g #????? | | ???????????# """"" + %! =*[ #????? | | ???????????# """"" # = g% ##???? | | ?????????????""""" ## """ """#?? | | ?????????????""""" ## """"" Y"#?? | | ????????????? ## """"" """#?? | | ?????????????######## """"" ####?? | | ????????????????????# """ #????? | | ????????????????????# #####? | | ????????????????????# #? | | ???????????########## """ #? | | ???????????# !! # """"" #? | | ???????????# """ !! # """"" #? | | ???????????# "R !!=# """"" #? | | ???????????# """ =#% """ #? | | ???????????# += #? | | ???????????# """ # #? | | ???????????# """ ##"T"###### #? | | ???????????# """ ######????# #? | | ???????????# #?????????#####? | | ???????????##########??????????????? | | ???????????????????????????????????? | | ???????????????????????????????????? | | ???????????????????????????????????? | | ???????????????????????????????????? | +----------------------------------------------------+ Best States ------------- Heat Dissipation 25 Energy Generation 10 Energy Capacity 125 Matter Stores 300 Matter Capacity 300 Sight Range 16 Terrain Scan Density 10 Evasion (%) 50 Recoil Reduction 2 Item Schematics ----------------- None Robot Schematics ------------------ None Fabricated ------------ Nothing Alien Tech Used ----------------- None Achievements -------------- None Challenges ------------ None Game ------ Seed CompactGaussCanceller Manual? 0 Play Time 00:08:48 Cumulative 2.1 hours Start 2022.12.17 @ 12:41:28 End 2022.12.17 @ 17:14:18 Sessions 2 Manual Loads 0 Difficulty Rogue Special Mode None Game No. 3 Rogue 3 Adventurer 0 Explorer 0 Win Type - Total 0 Types 0/0/0/0/0/0/0/0/0 Lore% 4 Gallery% 4 Achievement% 8 Wizard Run 0 Options --------- ASCII 0 Keyboard 0 Movement Mouse Keybinds 0 Fullscreen 1 Font 24/Smallcaps Map View 76x50 Tactical HUD 0 Map Filters NONE Filters NONE Steam 1 RUN: 9b92032e-dab1-4805-9e94-42e849308258